Cogmind - Beta 14 @@@ ROGUE MODE // 2024.11.22 @ 17:21:11 Player: TheTravelingGuy Result: Destroyed by YI-UF0 with YI-UF0's Doublenader Performance ------------- Evolutions (1) 500 Regions Visited (4) 800 Robots Destroyed (30) 150 Value Destroyed (522) 522 Prototype IDs (0) 0 Alien Tech Used (0) 0 Bonus (0) 0 TOTAL SCORE: 1972 Bonus ------- None Cogmind --------- Core Integrity 0/400 Matter 260/300 Energy 100/100 System Corruption 0% Temperature Cool (0) Movement Core (450) Ox8 Location -9/Mines Parts ------- > --- POWER (1) -------- (None) > --- PROPULSION (2) --- (None) > --- UTILITY (4) ------ Huge Storage Unit Weight Redist. System Signal Interpreter > --- WEAPON (2) ------- (None) > --- INVENTORY (25) --- Ion Engine Ion Engine Light Ion Engine Light Ion Engine Light Treads Light Treads Light Treads Light Treads Light Treads Aluminum Leg Aluminum Leg Heat Sink Terrain Scanner Peak State ------------ > --- POWER ------------ Ion Engine > --- PROPULSION ------- Light Treads Light Treads > --- UTILITY ---------- Huge Storage Unit Weight Redist. System Sensor Array Signal Interpreter > --- WEAPON ----------- Grenade Launcher Grenade Launcher > --- INVENTORY -------- Ion Engine Light Ion Engine Light Ion Engine Light Treads Light Treads Light Treads Aluminum Leg Aluminum Leg Heat Sink Terrain Scanner [Rating: 11] Favorites ----------- Power Ion Engine Engine Ion Engine Propulsion Light Treads Treads Light Treads Utility Huge Storage Unit Device Weight Redist. System Storage Huge Storage Unit Processor Signal Interpreter Weapon Grenade Launcher Ballistic Gun Assault Rifle Launcher Grenade Launcher Build | -11 -10 -10 -9 -9 ------- Run | Yrd Mat Min Mat Min Slots Evolved 2 | . . . 2 . Power . | . . . . . Propulsion . | . . . . . Utility 2 | . . . 2 . Weapon . | . . . . . Parts Attached 20 | 6 11 . 3 . Power 2 | 1 1 . . . Engine 2 | 1 1 . . . Core . | . . . . . Reactor . | . . . . . Propulsion 6 | 2 4 . . . Treads 6 | 2 4 . . . Leg . | . . . . . Wheel . | . . . . . Hover . | . . . . . Flight . | . . . . . Utility 6 | 1 3 . 2 . Device 3 | . 2 . 1 . Storage 2 | 1 1 . . . Processor 1 | . . . 1 . Hackware . | . . . . . Protection . | . . . . . Artifact . | . . . . . Weapon 6 | 2 3 . 1 . Energy Gun . | . . . . . Energy Cannon . | . . . . . Ballistic Gun 2 | 2 . . . . Ballistic Cannon . | . . . . . Launcher 4 | . 3 . 1 . Special Weapon . | . . . . . Impact Weapon . | . . . . . Slashing Weapon . | . . . . . Piercing Weapon . | . . . . . Special Melee Weapon . | . . . . . Unidentified Prototypes . | . . . . . Parts Lost 6 | . . . . 6 Power 1 | . . . . 1 Propulsion 2 | . . . . 2 Utility 1 | . . . . 1 Weapon 2 | . . . . 2 Highest Loss Streak 6 | . . . . 6 To Critical Strikes . | . . . . . Average Slot Usage (%) 95 | . 93 100 99 97 Engine 12 | . 13 14 11 10 Treads 25 | . 28 28 22 21 Device 13 | . 8 14 22 21 Storage 13 | . 14 14 11 11 Processor 3 | . . . 11 11 Ballistic Gun 8 | . 12 . . . Launcher 17 | . 14 28 21 20 Peak Build Rating 11 | 6 8 8 11 11 Average Rating 8 | 4 7 8 10 10 On Entrance 6 | . 6 8 8 11 Naked Turns . | . . . . . Heaviest Build 92 | 14 92 91 92 92 Greatest Support 46 | 40 46 46 46 46 Greatest Overweight (x) 8 | . 2 1 1 8 Average Overweight (x) . | . . 1 1 1 Largest Inventory Capacity 25 | 8 25 25 25 25 Average Capacity 19 | 7 17 25 25 25 Most Carried 14 | 4 11 9 14 13 Average Carried 9 | 2 7 9 12 13 Final Capacity 25 | 8 25 25 25 25 Final Carried 13 | 4 9 9 13 13 Class Distribution -------------------- 68% | Mutant 31% | Scavenger-Mutant Dominant Class ---------------- Mutant | -10/Materials Mutant | -10/Mines Scavenger-Mutant | -9/Materials Scavenger-Mutant | -9/Mines Resources | -11 -10 -10 -9 -9 ----------- Run | Yrd Mat Min Mat Min Matter Collected 832 | 206 528 . 2 96 Remotely . | . . . . . Salvage Created 703 | . 553 . 51 99 Parts 49 | . 34 . 8 7 Haulers Intercepted 2 | . 2 . . . Recyclers Shooed . | . . . . . Parts Field Recycled . | . . . . . Retrieved Matter . | . . . . . Parts Self-Destructed . | . . . . . Prevented . | . . . . . Kills | -11 -10 -10 -9 -9 ------- Run | Yrd Mat Min Mat Min Combat Hostiles Destroyed 20 | . 12 . 4 4 Guns 10 | . 10 . . . AOE 10 | . 2 . 4 4 Classes Destroyed 6 | . 6 . . . Hauler 2 | . 2 . . . Recycler 2 | . 1 . . 1 Operator 2 | . 2 . . . Watcher 4 | . 3 . 1 . Swarmer 14 | . 6 . 4 4 Grunt 6 | . 6 . . . Best Kill Streak 5 | . 5 . 4 5 Combat Bots Only 5 | . 5 . 4 4 Max Kills in Single Turn 4 | . 2 . 4 3 Gunslinging . | . . . . . Exploded 4 | . 2 . 4 2 Melee . | . . . . . Uniques/NPCs Destroyed . | . . . . . Combat | -11 -10 -10 -9 -9 -------- Run | Yrd Mat Min Mat Min Hostile Shots Fired 116 | . 78 . 3 35 Missed 38 | . 22 . 2 14 Damage Taken 1678 | . 726 . 10 942 Core 597 | . 160 . . 437 Absorbed by Shields . | . . . . . Regen/Repaired (Parts) 36 | . . . 36 . Core Remaining (%) 68 | 100 . 36 . . Volleys Fired 66 | . 60 . 2 4 Largest 2 | . 2 . 2 2 Hottest 60 | . 60 . 60 60 Shots Fired 130 | . 120 . 4 6 Gun 114 | . 114 . . . Cannon . | . . . . . Launcher 16 | . 6 . 4 6 Special . | . . . . . Kinetic 114 | . 114 . . . Thermal . | . . . . . Explosive 16 | . 6 . 4 6 Electromagnetic . | . . . . . Robot Hit Streak 12 | . 12 . . 1 Robot Miss Streak 8 | . 8 . 1 2 Penetration Max . | . . . . . Secondary Targets 2 | . 2 . . . Max Gunslinging Chain 1 | . 1 . . . Shots Hit Robots 56 | . 55 . . 1 Core Hits 44 | . 32 . 5 7 Critical Kills 1 | . 1 . . . Critical Parts Destroyed . | . . . . . Critical Strikes 1 | . 1 . . . Destroy 1 | . 1 . . . Melee Attacks . | . . . . . Impact . | . . . . . Slashing . | . . . . . Piercing . | . . . . . Sneak Attacks . | . . . . . Combat Hostiles . | . . . . . Follow-up Attacks . | . . . . . Damage Inflicted 1441 | . 949 . 216 276 Guns 711 | . 711 . . . Cannons . | . . . . . Explosions 730 | . 238 . 216 276 Melee . | . . . . . Ramming . | . . . . . Kinetic 711 | . 711 . . . Thermal . | . . . . . Explosive 672 | . 180 . 216 276 Electromagnetic 58 | . 58 . . . Impact . | . . . . . Slashing . | . . . . . Piercing . | . . . . . Highest Corruption . | . . . . . Average Corruption . | . . . . . Corruption Purged . | . . . . . Corruption Blocked . | . . . . . Overload Shots . | . . . . . Overflow Damage 47 | . . . . 47 Projectiles . | . . . . . Explosions 47 | . . . . 47 Melee . | . . . . . Knockbacks . | . . . . . Impact . | . . . . . Kinetic . | . . . . . Secondary . | . . . . . Self-Inflicted Damage 157 | . 85 . . 72 Shots 5 | . 2 . . 3 Rammed . | . . . . . Targets Rammed . | . . . . . Kicked . | . . . . . Crushed . | . . . . . Highest Temperature 20 | . 20 . . . Average Temperature 8 | . 8 . . . Received Heat Transfer 207 | . 207 . . . Siege Activations . | . . . . . Robots Corrupted . | . . . . . Combat Hostiles . | . . . . . Parts Fried . | . . . . . Impact Corruptions . | . . . . . Robots Melted . | . . . . . Combat Hostiles . | . . . . . Parts Melted . | . . . . . Heat Transferred . | . . . . . Parts Sabotaged . | . . . . . Parts Stolen . | . . . . . Parts Stripped . | . . . . . Power Chain Reactions . | . . . . . Alert | -11 -10 -10 -9 -9 ------- Run | Yrd Mat Min Mat Min Peak Influence 187 | . 187 26 124 133 Initial 26 | . . 26 9 12 Average 51 | . 52 26 21 109 Maximum Alert Level . | . . . . . Low Security (%) 100 | 100 100 100 100 100 Level 1 . | . . . . . Level 2 . | . . . . . Level 3 . | . . . . . Level 4 . | . . . . . Level 5 . | . . . . . High Security . | . . . . . Max Security . | . . . . . Squads Dispatched 2 | . 1 . 1 . Investigation 1 | . . . 1 . Extermination . | . . . . . Reinforcement 1 | . 1 . . . Assault . | . . . . . Garrison . | . . . . . Intercept . | . . . . . Searches Triggered . | . . . . . Construction Impeded . | . . . . . Haulers Reinforced . | . . . . . Active Scanning Responses . | . . . . . Cargo Convoy Interrupts . | . . . . . Stealth | -11 -10 -10 -9 -9 --------- Run | Yrd Mat Min Mat Min Distress Signals 1 | . 1 . . . Communications Jammed . | . . . . . Distress Signals . | . . . . . Times Spotted 34 | . 24 . 5 5 Peak Tracking Total 6 | . 6 . 4 4 Tactical Retreats . | . . . . . Traps | -11 -10 -10 -9 -9 ------- Run | Yrd Mat Min Mat Min Traps Triggered 2 | . 2 . . . Indirectly . | . . . . . Trap Hack Attempts . | . . . . . Triggered . | . . . . . Disarmed . | . . . . . Reprogrammed . | . . . . . Reused . | . . . . . Traps Extracted . | . . . . . Installed . | . . . . . Triggered . | . . . . . Machines | -11 -10 -10 -9 -9 ---------- Run | Yrd Mat Min Mat Min Machines Disabled 4 | . 2 . 2 . Max in Single Turn 2 | . 2 . 1 . Machines Repaired . | . . . . . Machines Dismantled . | . . . . . Machines Sabotaged . | . . . . . Overloaded Fab Kills . | . . . . . Hacking | -11 -10 -10 -9 -9 --------- Run | Yrd Mat Min Mat Min Machines Accessed 7 | . 4 . 3 . Terminals 5 | . 3 . 2 . Fabricators . | . . . . . Repair Stations 1 | . . . 1 . Recycling Units 1 | . 1 . . . Scanalyzers . | . . . . . Garrison Access . | . . . . . Total Hacks 21 | . 10 . 11 . Successful 9 | . 5 . 4 . Failed 12 | . 5 . 7 . Catastrophic 2 | . 1 . 1 . Database Lockouts . | . . . . . Manual 14 | . 7 . 7 . Terminals 17 | . 9 . 8 . Fabricators . | . . . . . Repair Stations 3 | . . . 3 . Recycling Units 1 | . 1 . . . Scanalyzers . | . . . . . Garrison Access . | . . . . . Terminal Hacks 6 | . 4 . 2 . Locate Traps 1 | . 1 . . . Maintenance Status 1 | . 1 . . . Hauler Manifests 2 | . 1 . 1 . Zone Layout 2 | . 1 . 1 . Fabricator Hacks . | . . . . . Repair Station Hacks 2 | . . . 2 . Scan Component 1 | . . . 1 . Repair 1 | . . . 1 . Recycling Unit Hacks 1 | . 1 . . . Report Inventory 1 | . 1 . . . Scanalyzer . | . . . . . Garrison Access Hacks . | . . . . . Unauthorized Hacks . | . . . . . Terminals . | . . . . . Fabricators . | . . . . . Repair Stations . | . . . . . Recycling Units . | . . . . . Scanalyzers . | . . . . . Garrison Access . | . . . . . Data Cores Recovered . | . . . . . Used . | . . . . . Hacking Detections 5 | . 2 . 3 . Full Trace Events 3 | . 1 . 2 . Feedback Events . | . . . . . Feedback Blocked . | . . . . . Robot Schematics Acquired . | . . . . . Robots Built . | . . . . . Authchips . | . . . . . Time . | . . . . . Total Robot Build Rating . | . . . . . Part Schematics Acquired . | . . . . . Parts Built . | . . . . . Authchips . | . . . . . Time . | . . . . . Total Part Build Rating . | . . . . . Parts Repaired 1 | . . . 1 . Time 26 | . . . 26 . Parts Recycled . | . . . . . Recycled Matter . | . . . . . Retrieved Matter . | . . . . . Retrieved Components . | . . . . . Parts Scanalyzed . | . . . . . Part Schematics Acquired . | . . . . . Parts Damaged . | . . . . . Bothacking | -11 -10 -10 -9 -9 ------------ Run | Yrd Mat Min Mat Min Used RIF Installer . | . . . . . Robots Hacked . | . . . . . Non-combat . | . . . . . Combat . | . . . . . Robot Hacks Applied . | . . . . . Relay Couplers Released . | . . . . . Fabnet Peak Effective % . | . . . . . Robots Rewired . | . . . . . Allies Hacked . | . . . . . Hacks Repelled . | . . . . . Allies | -11 -10 -10 -9 -9 -------- Run | Yrd Mat Min Mat Min Total Allies . | . . . . . Largest Group . | . . . . . Highest-Rated Group . | . . . . . Highest-Rated Ally . | . . . . . Total Orders . | . . . . . Ally Attacks . | . . . . . Total Damage . | . . . . . Kills . | . . . . . Allies Corrupted . | . . . . . Allies Melted . | . . . . . Intel | -11 -10 -10 -9 -9 ------- Run | Yrd Mat Min Mat Min Robot Analysis Total . | . . . . . Derelict Logs Recovered 1 | . . . . 1 Drone Launches . | . . . . . Drone Recoveries . | . . . . . Exploration | -11 -10 -10 -9 -9 ------------- Run | Yrd Mat Min Mat Min Turns Passed 3087 | 70 1939 94 580 404 Spaces Moved 1235 | 46 845 40 149 155 Core 18 | 17 . . . 1 Treads 1217 | 29 845 40 149 154 Legs . | . . . . . Wheels . | . . . . . Hover . | . . . . . Flight . | . . . . . Fastest Speed 50 | 50 160 240 240 240 Average Speed 208 | 119 198 240 240 246 Slowest Speed 450 | 160 320 240 240 450 Overloaded Moves . | . . . . . Propulsion Burnouts . | . . . . . Robots Hopped . | . . . . . Cave-ins Triggered . | . . . . . Exploration Rate (%) 34 | 3 92 16 15 47 Regions Visited 4 Branch Regions 2 Pre-discovered Areas . | . . . . . Known Exits Taken 1 | . . . 1 . Unknown Exits Taken 3 | 1 1 1 . . Scrap Searched 1 | . . . . 1 Spaces Dug . | . . . . . Terrain Destroyed 96 | . 27 . 22 47 Melee . | . . . . . Projectile . | . . . . . AOE 96 | . 27 . 22 47 Terrain Rammed . | . . . . . Walls Destroyed . | . . . . . Machines Disabled . | . . . . . Actions | -11 -10 -10 -9 -9 --------- Run | Yrd Mat Min Mat Min Total 1628 | 61 989 39 368 171 Wait 274 | . 54 . 208 12 Move 1231 | 45 844 39 148 155 Hop . | . . . . . Pick Up 29 | 10 12 . 7 . Fast Attach 1 | . 1 . . . Attach 13 | 6 4 . 3 . Detach . | . . . . . Swap 6 | . 6 . . . Drop 8 | . 8 . . . Fire 66 | . 60 . 2 4 Melee . | . . . . . Ram . | . . . . . Kick . | . . . . . Crush . | . . . . . Escape Stasis . | . . . . . Rewire . | . . . . . Trap . | . . . . . Miscellaneous . | . . . . . Route ------- -11/Scrapyard -10/Materials (discovered 6 exits: *Mat x3 / [*Min x2] / [*Sub]) -10/Mines -9/Materials -9/Mines (discovered 2 exits: [*Mat] / [*Zio]) History --------- Turn | Location | Event 6 | -11/Scrapyard | Discovered new exit (range 15) 71 | -11/Scrapyard | Entered Materials 164 | -10/Materials | Discovered new exit (range 16) 218 | -10/Materials | Discovered new exit (range 14) 300 | -10/Materials | Build established: Mutant 595 | -10/Materials | Discovered new exit (range 15) 706 | -10/Materials | Discovered new exit (range 16) 1069 | -10/Materials | Discovered new exit (range 9) 1198 | -10/Materials | Discovered new exit (range 16) 1245 | -10/Materials | Core integrity fell below 50% 2010 | -10/Materials | Entered Mines 2078 | -10/Mines | Discovered new exit (range 10) 2104 | -10/Mines | Entered Materials 2104 | -9/Materials | Evolved 2 slots: Utility x2 2411 | -9/Materials | Build established: Scavenger-Mutant 2468 | -9/Materials | Discovered new exit (range 16) 2518 | -9/Materials | Repaired Grenade Launcher 2681 | -9/Materials | Identified exit to Mines 2684 | -9/Materials | Entered Mines 2782 | -9/Mines | Discovered new exit (range 6) 2860 | -9/Mines | A Derelict revealed a hidden shortcut to a safe place 2902 | -9/Mines | Learned Materials emergency access door positions 3077 | -9/Mines | Core integrity fell below 50% 3085 | -9/Mines | Core integrity fell below 20% 3088 | -9/Mines | Destroyed by YI-UF0 with YI-UF0's Doublenader Last Messages --------------- Data stored: Materials emergency access points. 03039_ The unstable cave ceiling collapses. 03048_ Searching scrap... 03048_ Found Cooling System. 03048_ Found 35 Matter. 03049_ Acquired 35 matter. 03055_ YI-UF0 mumbles something. 03055_ Grenade Launcher destroyed. 03056_ The unstable cave ceiling collapses. 03060_ YI-UF0 mumbles something. 03061_ Grenade Launcher destroyed. 03061_ Lgt. Treads destroyed. 03064_ The unstable cave ceiling collapses. 03068_ K-01 Serf destroyed. 03068_ T-07 Excavator destroyed. 03072_ The unstable cave ceiling collapses. 03078_ Sensor Array destroyed. 03078_ Lgt. Treads destroyed. 03078_ Ion Engine destroyed. 03081_ The unstable cave ceiling collapses. Map ----- +----------------------------------------------------+ | ?????????# """ #???# ???????????????????? | | ?????????# """ ##### #??#??????????????????? | | ?????????# #? ###????????????????? | | ?????????# ##### ## #????????????????? | | ?????????########??## #????????????????? | | ????????####???????# ##????????????????? | | ???###?## ###????## ####?????????????????? | | ???# ## ###### ##????????????????????? | | ???# ##????????????????????? | | ???# #????????????????????? | | ???## ## #???????????????????? | | ????## #### ??????????????? | | ?????## ##?#### #?????????????? | | ??????## ##???## ####?????????????? | | ???????## #????# #????????????????? | | ????????# ##???# ## #???????????????? | | ????????# ##### ##?# #??????????????? | | ????????## ## ##??? #??????????????? | | ?????????## ##????? ##????##????????? | | ?????????### #####??###???# ???????? | | ?????????# ###?????# = ##???????? | | ?????????# # ###### = ###?????? | | ???????? ## # % ##????? | | ???????## ??# = ????? | | ????????#??## * ???? | | ????????# @ ???? | | ????? g ??? | | ???# #???? | | ???? ??? | | ????# # " #????? | | ????## ########## #????? | | ?????# #?????????# ### # #?????? | | ?????# ??????????# ##????#????????? | | ?????## ???????????# ####??????????????? | | ??????###???????????########?????????????????? | | ?????????????????????????????????????????????? | | ?????????????????????????????????????????????? | | ?????????????????????????????????????????????? | | | | | | | | | | | | | | | | | | | | | | | | | +----------------------------------------------------+ Best States ------------- Heat Dissipation 35 Energy Generation 10 Energy Capacity 250 Matter Stores 300 Matter Capacity 300 Sight Range 16 Robot Scan Range 14 Terrain Scan Density 10 Additional Mass Support 6 Evasion (%) 50 Recoil Reduction 2 Item Schematics ----------------- None Robot Schematics ------------------ None Fabricated ------------ Nothing Alien Tech Used ----------------- None Achievements -------------- None Challenges ------------ None Game ------ Seed PrecisionGravmagTreads Manual? 0 Play Time 00:13:56 Cumulative 8.8 hours Start 2024.11.22 @ 17:08:50 End 2024.11.22 @ 17:21:11 Sessions 1 Manual Loads 0 Difficulty Rogue Special Mode None Game No. 12 Rogue 12 Adventurer 0 Explorer 0 Win Type - Total 0 Types 0/0/0/0/0/0/0/0/0 Lore% 9 Gallery% 16 Achievement% 16 Wizard Run 0 Options --------- Layout 1 ASCII 0 Keyboard 0 Movement Mouse Keybinds 0 Fullscreen 2 Font 24/Smallcaps Map View 50x35 Zoom Use 0% Tactical HUD 1 Map Filters NONE Filters NONE Steam 1 RUN: d5efe85f-ffb2-4cc3-9e6b-33bd69d3ec9c